bitfinex-derivatives/quotes_SOLF0:USTF0_20230402
["timestamp","ask_amount","ask_price","bid_price","bid_amount"]
[1680394305256,1.73754919,21.161,21.154,23.67]
[1680394305454,141.8,21.163,21.154,23.67]
[1680394305658,26.94799008,21.162,21.154,23.67]
[1680394305859,1.73754954,21.161,21.154,23.67]
[1680394306054,141.86190648,21.164,21.154,23.67]
[1680394306260,26.94718528,21.163,21.154,23.67]
[1680394306459,26.94718528,21.162,21.154,23.67]
[1680394306659,1.73753786,21.161,21.154,23.67]
[1680394306959,23.52,21.163,21.152,23.67]
[1680394307259,1.7375162,21.162,21.152,23.67]
[1680394323372,5.0,21.161,21.152,23.67]
[1680394323675,1.7375162,21.16,21.152,23.67]
[1680394323975,143.5375162,21.16,21.149,23.67]
[1680394324169,141.8,21.16,21.149,23.67]
[1680394324772,1.73773223,21.159,21.149,23.67]
[1680394324973,141.8,21.16,21.149,23.67]
[1680394325376,188.1264,21.16,21.149,23.67]
[1680394325871,1.73773363,21.159,21.149,23.67]
[1680394327579,141.8,21.16,21.149,23.67]
[1680394328479,185.4518,21.16,21.149,23.67]
[1680394331181,43.6518,21.16,21.149,23.67]
[1680394331380,0.06190648,21.164,21.151,23.67]
[1680394331681,23.67,21.163,21.151,23.67]
[1680394331881,26.95178619,21.162,21.151,23.67]
[1680394332082,1.73761617,21.161,21.151,23.67]
[1680394332382,1.73761617,21.16,21.151,23.67]
[1680394332580,165.47,21.163,21.151,23.67]
[1680394332880,168.75167797,21.162,21.151,23.67]
[1680394333081,1.73761436,21.161,21.151,23.67]
[1680394333982,1.73761436,21.16,21.151,23.67]
[1680394334183,23.67,21.163,21.151,23.67]
[1680394334480,26.95158528,21.162,21.151,23.67]
[1680394334684,1.73761274,21.161,21.151,23.67]
[1680394334875,23.67,21.163,21.151,23.67]
[1680394335080,26.95079919,21.162,21.151,23.67]
[1680394335281,1.73759875,21.161,21.151,23.67]
[1680394335480,23.67,21.163,21.151,23.67]
[1680394335685,26.9508345,21.162,21.151,23.67]
[1680394335880,1.73759936,21.161,21.151,23.67]
[1680394336081,23.67,21.163,21.151,23.67]
[1680394336381,26.95087955,21.162,21.151,23.67]
[1680394336576,1.73760019,21.161,21.151,23.67]
[1680394336881,23.67,21.163,21.151,23.67]
[1680394337082,26.9516118,21.162,21.151,23.67]
[1680394337283,26.9516118,21.161,21.151,23.67]
[1680394337483,23.67,21.163,21.151,23.67]
[1680394337684,26.9512803,21.162,21.151,23.67]
[1680394337885,1.73760724,21.161,21.151,23.67]
[1680394338085,23.67,21.163,21.151,23.67]
[1680394338291,26.95128303,21.162,21.151,23.67]
[1680394338583,26.95128303,21.161,21.151,23.67]
[1680394338784,23.67,21.163,21.151,23.67]
[1680394338985,26.95140481,21.162,21.151,23.67]
[1680394339183,26.95140481,21.161,21.151,23.67]
[1680394339485,23.67,21.163,21.151,23.67]
[1680394339687,26.9512847,21.162,21.151,23.67]
[1680394339879,26.9512847,21.161,21.151,23.67]
[1680394340083,23.67,21.163,21.151,23.67]
[1680394340283,26.95124352,21.162,21.151,23.67]
[1680394340486,26.95124352,21.161,21.151,23.67]
[1680394340679,23.67,21.163,21.151,23.67]
[1680394340982,26.9512779,21.162,21.151,23.67]
[1680394341182,26.9512779,21.161,21.151,23.67]
[1680394341386,23.67,21.163,21.151,23.67]
[1680394341582,26.95117319,21.162,21.151,23.67]
[1680394341783,26.95117319,21.161,21.151,23.67]
[1680394341990,23.67,21.163,21.151,23.67]
[1680394342285,26.95121019,21.162,21.151,23.67]
[1680394342485,23.67,21.163,21.151,23.67]
[1680394342486,26.95121019,21.161,21.151,23.67]
[1680394342785,25.21363468,21.16,21.151,23.67]
[1680394342987,23.67,21.163,21.151,23.67]
[1680394343187,26.95125119,21.162,21.151,23.67]
[1680394343388,26.95125119,21.161,21.151,23.67]
[1680394343590,25.21364423,21.16,21.151,23.67]
[1680394343788,23.67,21.163,21.151,23.67]
[1680394344088,26.95126435,21.162,21.151,23.67]
[1680394344288,26.95126435,21.161,21.151,23.67]
[1680394344590,25.21365713,21.16,21.151,23.67]
[1680394344789,23.67,21.163,21.151,23.67]
[1680394344990,26.95131515,21.162,21.151,23.67]
[1680394345183,26.95131515,21.161,21.151,23.67]
[1680394345483,25.21370702,21.16,21.151,23.67]
[1680394345683,23.67,21.163,21.151,23.67]
[1680394345987,26.95134458,21.162,21.151,23.67]
[1680394346189,26.95134458,21.161,21.151,23.67]
[1680394346387,25.2137359,21.16,21.151,23.67]
[1680394346589,23.67,21.163,21.151,23.67]
[1680394346790,26.95137168,21.162,21.151,23.67]
[1680394346989,26.95137168,21.161,21.151,23.67]
[1680394347189,25.21376237,21.16,21.151,23.67]
[1680394347393,23.67,21.163,21.151,23.67]
[1680394347586,26.95140218,21.162,21.151,23.67]
[1680394347792,26.95140218,21.161,21.151,23.67]
[1680394347994,25.21379233,21.16,21.151,23.67]
[1680394348192,23.67,21.163,21.151,23.67]
[1680394348493,26.95119458,21.162,21.151,23.67]
[1680394348694,168.75119458,21.161,21.151,23.67]
[1680394348897,165.47,21.159,21.148,70.6652]
[1680394355204,167.01421085,21.158,21.148,70.6652]
[1680394355402,141.8,21.158,21.148,70.6652]
[1680394357505,25.21468012,21.157,21.148,70.6652]
[1680394358408,141.8,21.158,21.148,70.6652]
[1680394358905,25.21475196,21.157,21.148,70.6652]
[1680394362409,25.21475196,21.157,21.148,46.9952]
[1680394362709,25.21475196,21.156,21.151,18.83]
[1680394363007,18.94,21.158,21.151,18.83]
[1680394363208,25.21497141,21.157,21.151,18.83]
[1680394376519,18.94,21.161,21.153,18.83]
[1680394376717,25.20032719,21.16,21.153,18.83]
[1680394377218,25.20032719,21.16,21.155,18.83]
[1680394377419,18.94,21.162,21.155,18.83]
[1680394377420,25.20032719,21.161,21.155,18.83]
[1680394392634,25.20032719,21.161,21.156,18.94]
[1680394392828,25.20032719,21.16,21.156,18.94]
[1680394393033,25.20032719,21.162,21.156,18.94]
[1680394393234,25.20032719,21.161,21.156,18.94]
[1680394393435,25.20032719,21.16,21.156,18.94]
[1680394393636,25.20032719,21.159,21.156,18.94]
[1680394393835,25.20032719,21.162,21.156,18.94]
[1680394394035,25.19983029,21.161,21.156,18.94]
[1680394394334,25.19983029,21.16,21.156,18.94]
[1680394394535,25.19983029,21.159,21.156,18.94]
[1680394394736,18.94,21.163,21.156,18.94]
[1680394394936,25.19991947,21.162,21.156,18.94]
[1680394416953,44.13991947,21.162,21.154,18.83]
[1680394417254,25.19991947,21.161,21.154,18.83]
[1680394421857,25.19991947,21.161,21.152,5.0]
[1680394421858,18.94,21.159,21.152,18.94]
[1680394422052,26.93759978,21.158,21.152,18.94]
[1680394422254,26.93759978,21.157,21.152,18.94]
[1680394422454,25.19991947,21.157,21.152,18.94]
[1680394422652,25.19991947,21.156,21.152,18.94]
[1680394422852,25.19991947,21.155,21.152,18.94]
[1680394423158,25.19991947,21.154,21.152,18.94]
[1680394423459,18.94,21.159,21.152,18.94]
[1680394423659,26.95553197,21.158,21.152,18.94]
[1680394423859,26.95553197,21.157,21.152,18.94]
[1680394424160,25.21784765,21.156,21.152,18.94]
[1680394424357,25.21784765,21.155,21.152,18.94]
[1680394424558,25.21784765,21.154,21.152,18.94]
[1680394424760,25.21784765,21.158,21.152,18.94]
[1680394424959,26.95550724,21.157,21.152,18.94]
[1680394425258,25.21782341,21.156,21.152,18.94]
[1680394425558,25.21782341,21.155,21.152,18.94]
[1680394425758,25.21782341,21.158,21.152,18.94]
[1680394425960,1.73768246,21.157,21.152,18.94]
[1680394426155,25.21782341,21.156,21.152,18.94]
[1680394426659,25.21782341,21.158,21.152,18.94]
[1680394426858,1.73768283,21.157,21.152,18.94]
[1680394427060,25.21782341,21.156,21.15,18.94]
[1680394427659,25.21782341,21.155,21.15,18.94]
[1680394427960,18.94,21.158,21.15,18.94]
[1680394428261,26.95641746,21.157,21.15,18.94]
[1680394428559,25.2187173,21.156,21.15,18.94]
[1680394428752,25.2187173,21.155,21.15,18.94]
[1680394428956,25.2187173,21.156,21.15,18.94]
[1680394429157,25.2187173,21.155,21.15,18.94]
[1680394429358,25.2187173,21.154,21.15,18.94]
[1680394429558,141.8,21.157,21.15,18.94]
[1680394429759,26.96642219,21.156,21.15,18.94]
[1680394429953,25.22854368,21.155,21.15,18.94]
[1680394430258,25.22854368,21.154,21.15,18.94]
[1680394430458,141.8,21.157,21.15,18.94]
[1680394430652,26.96631884,21.156,21.15,18.94]
[1680394430855,25.22844145,21.155,21.15,18.94]
[1680394431055,25.22844145,21.156,21.15,18.94]
[1680394431256,25.22844145,21.155,21.15,18.94]
[1680394431457,25.22844145,21.157,21.15,18.94]
[1680394431758,1.73787534,21.156,21.15,18.94]
[1680394431958,25.22844145,21.155,21.15,18.94]
[1680394432458,25.22844145,21.154,21.15,18.94]
[1680394432659,25.22844145,21.156,21.15,18.94]
[1680394432860,25.22786968,21.155,21.15,18.94]
[1680394433061,25.22786968,21.154,21.15,18.94]
[1680394433261,141.8,21.157,21.15,18.94]
[1680394433456,26.96569648,21.156,21.15,18.94]
[1680394433754,25.22783021,21.155,21.15,18.94]
[1680394433959,25.22783021,21.156,21.15,18.94]
[1680394434155,25.22777392,21.155,21.15,18.94]
[1680394434361,141.8,21.157,21.15,18.94]
[1680394434659,26.96562692,21.156,21.15,18.94]
[1680394434861,25.22776274,21.155,21.15,18.94]
[1680394435060,141.8,21.157,21.15,18.94]
[1680394435359,26.96557724,21.156,21.15,18.94]
[1680394435562,25.2277143,21.155,21.15,18.94]
[1680394435761,141.8,21.157,21.15,18.94]
[1680394435962,26.96554538,21.156,21.15,18.94]
[1680394436162,25.22768184,21.155,21.15,18.94]
[1680394436363,25.22768184,21.156,21.15,18.94]
[1680394436554,18.94,21.154,21.146,18.83]
[1680394437062,18.94,21.153,21.145,18.94]
[1680394437364,18.94,21.148,21.141,18.83]
[1680394440165,0.06011194,21.152,21.135,10.0]
[1680394440166,18.94,21.142,21.135,10.0]
[1680394441267,18.94,21.142,21.134,18.83]
[1680394442367,141.8,21.143,21.132,23.48]
[1680394442667,141.8,21.143,21.133,10.0]
[1680394445372,141.8,21.143,21.132,23.48]
[1680394447070,141.8,21.143,21.13,23.54]
[1680394447071,23.55,21.141,21.13,23.54]
[1680394447271,23.55,21.139,21.127,23.48]
[1680394455278,23.55,21.136,21.125,33.48]
[1680394455478,23.55,21.136,21.125,23.48]
[1680394462683,23.49,21.133,21.122,23.54]
[1680394491307,23.51,21.128,21.12,44.0817]
[1680394492513,165.51,21.125,21.113,23.71]
[1680394492813,0.18921656,21.12,21.112,23.48]
[1680394493711,0.18921656,21.12,21.113,45.9406]
[1680394497614,0.18921656,21.12,21.114,10.0]
[1680394507022,0.18921656,21.12,21.116,18.88]
[1680394510827,0.18921656,21.12,21.117,10.0]
[1680394511328,654.7775112,21.176,21.117,10.0]
[1680394511329,19.01,21.13,21.119,18.88]
[1680394511531,19.01,21.13,21.122,18.88]
[1680394511725,19.01,21.133,21.125,19.01]
[1680394514326,19.01,21.133,21.126,10.0]
[1680394514829,19.01,21.133,21.125,19.01]
[1680394517031,19.01,21.134,21.127,18.88]
[1680394517529,23.79529221,21.136,21.125,23.7]
[1680394517730,1.73956394,21.135,21.125,23.7]
[1680394522766,165.59529221,21.136,21.125,23.7]
[1680394523234,1.73955208,21.135,21.125,23.7]
[1680394523935,141.8,21.132,21.122,10.06663959]
[1680394524235,141.8,21.132,21.122,0.06663959]
[1680394524934,187.1885,21.132,21.122,0.06663959]
[1680394527137,165.53,21.13,21.122,0.06663959]
[1680394527737,23.73,21.13,21.122,0.06663959]
[1680394528435,45.3885,21.132,21.122,0.06663959]
[1680394534633,187.1885,21.132,21.122,0.06663959]
[1680394536242,45.3885,21.132,21.122,0.06663959]
[1680394538647,187.1885,21.132,21.122,0.06663959]
[1680394538947,45.3885,21.132,21.122,0.06663959]
[1680394539137,45.3885,21.132,21.122,10.06663959]
[1680394539748,45.16227813,21.132,21.122,0.06663959]
[1680394542850,45.16227813,21.132,21.124,23.52]
[1680394543149,23.73,21.135,21.124,23.52]
[1680394544152,165.53,21.135,21.124,23.52]
[1680394544351,10.0,21.134,21.124,23.52]
[1680394545151,165.53,21.135,21.124,23.52]
[1680394545652,23.73,21.135,21.124,23.52]
[1680394557161,0.06529221,21.136,21.125,23.73]
[1680394557360,1.80487224,21.136,21.125,23.73]
[1680394557658,25.28624289,21.135,21.125,23.73]
[1680394558052,0.06529221,21.136,21.125,23.73]
[1680394558253,1.80489161,21.136,21.125,23.73]
[1680394558456,25.28666989,21.135,21.125,23.73]
[1680394558852,0.06529221,21.136,21.125,23.73]
[1680394559056,1.804888,21.136,21.125,23.73]
[1680394559259,25.28770113,21.135,21.125,23.73]
[1680394559659,0.06529221,21.136,21.125,23.73]
[1680394559854,1.80488581,21.136,21.125,23.73]
[1680394560057,25.28529751,21.135,21.125,23.73]
[1680394560460,0.06529221,21.136,21.125,23.73]
[1680394560661,1.80488289,21.136,21.126,10.0]
[1680394560962,25.28545988,21.135,21.125,23.73]
[1680394561461,0.06529221,21.136,21.125,23.73]
[1680394561661,1.80488149,21.136,21.125,23.73]
[1680394561863,25.28564709,21.135,21.125,23.73]
[1680394562258,25.3509393,21.136,21.125,23.73]
[1680394562461,25.28564709,21.134,21.129,23.52]
[1680394562661,0.06529221,21.136,21.129,23.52]
[1680394563465,27.09039564,21.136,21.129,23.52]
[1680394563764,27.02510343,21.135,21.129,23.52]
[1680394563965,25.28552267,21.134,21.129,23.52]
[1680394564166,0.06529221,21.136,21.129,23.52]
[1680394564966,27.08991584,21.136,21.129,23.52]
[1680394565166,25.28505606,21.135,21.129,23.52]
[1680394565366,25.28505606,21.134,21.129,23.52]
[1680394565568,0.06529221,21.136,21.129,23.52]
[1680394566571,25.35061681,21.136,21.129,23.52]
[1680394566766,0.06529221,21.136,21.129,23.52]
[1680394567564,25.3405964,21.136,21.129,23.52]
[1680394567762,25.27530419,21.135,21.129,23.52]
[1680394567962,0.06529221,21.136,21.129,23.52]
[1680394570068,0.06529221,21.136,21.13,10.0]
[1680394570269,27.02211472,21.138,21.129,23.52]
[1680394570465,25.28296331,21.137,21.129,23.52]
[1680394570670,23.59799845,21.14,21.129,23.52]
[1680394570872,27.02208229,21.139,21.129,23.52]
[1680394571070,27.02208229,21.138,21.129,23.52]
[1680394571270,25.28293174,21.137,21.129,23.52]
[1680394571570,25.2828206,21.136,21.129,23.52]
[1680394571768,23.59799845,21.14,21.129,23.52]
[1680394571968,27.02186613,21.139,21.129,23.52]
[1680394572169,27.02186613,21.138,21.129,23.52]
[1680394572373,25.28271098,21.137,21.129,23.52]
[1680394572578,25.28271098,21.136,21.129,23.52]
[1680394572874,23.59799845,21.14,21.129,23.52]
[1680394573172,27.02193058,21.139,21.129,23.52]
[1680394573365,27.02193058,21.138,21.129,23.52]
[1680394573570,25.28277772,21.137,21.129,23.52]
[1680394573772,25.28277772,21.136,21.129,23.52]
[1680394574075,23.59799845,21.14,21.129,23.52]
[1680394574274,27.02218662,21.139,21.129,23.52]
[1680394574473,27.02218662,21.138,21.129,23.52]
[1680394574777,25.28303519,21.137,21.129,23.52]
[1680394575076,25.28303519,21.136,21.129,23.52]
[1680394575276,23.59799845,21.14,21.129,23.52]
[1680394575476,27.02203432,21.139,21.129,23.52]
[1680394575677,27.02203432,21.138,21.129,23.52]
[1680394575879,25.28287629,21.137,21.129,23.52]
[1680394576077,25.28287629,21.136,21.129,23.52]
[1680394576376,23.59799845,21.14,21.129,23.52]
[1680394576577,27.02210043,21.139,21.129,23.52]
[1680394576876,27.02210043,21.138,21.129,23.52]
[1680394577077,23.59799845,21.14,21.129,23.52]
[1680394577078,25.28294482,21.137,21.129,23.52]
[1680394577379,25.28294482,21.136,21.126,0.06705004]
[1680394577680,25.28294482,21.135,21.131,18.98]
[1680394577979,18.98,21.138,21.131,18.98]
[1680394578178,25.28331695,21.137,21.131,18.98]
[1680394580378,0.06799845,21.14,21.134,18.98]
[1680394580680,25.28483384,21.14,21.136,18.98]
[1680394580882,18.93942133,21.144,21.136,18.98]
[1680394581183,27.02377453,21.143,21.136,18.98]
[1680394581383,25.28480299,21.142,21.136,18.98]
[1680394581681,25.28480299,21.141,21.136,18.98]
[1680394581875,18.93942133,21.144,21.136,18.98]
[1680394582074,27.02341995,21.143,21.136,18.98]
[1680394582279,25.28445593,21.142,21.136,18.98]
[1680394582483,25.28445593,21.141,21.135,23.7]
[1680394582782,0.06942133,21.144,21.135,23.7]
[1680394583281,27.09289208,21.144,21.136,10.0]
[1680394583480,27.02347075,21.143,21.136,10.0]
[1680394583783,25.28450475,21.142,21.136,10.0]
[1680394584082,25.28450475,21.141,21.136,10.0]
[1680394584281,0.06942133,21.144,21.136,10.0]
[1680394584683,27.09297905,21.144,21.136,10.0]
[1680394584981,27.02355772,21.143,21.136,10.0]
[1680394585182,25.28458962,21.142,21.136,10.0]
[1680394585382,25.28458962,21.141,21.136,10.0]
[1680394585580,0.06942133,21.144,21.136,10.0]
[1680394586082,27.09298755,21.144,21.136,10.0]
[1680394586282,27.02356622,21.143,21.136,10.0]
[1680394586581,25.28459669,21.142,21.136,10.0]
[1680394586782,0.06942133,21.144,21.136,10.0]
[1680394586979,0.06942133,21.144,21.139,23.7]
[1680394587284,0.06357118,21.149,21.143,23.7]
[1680394587484,26.98686726,21.152,21.143,23.7]
[1680394587684,10.06833528,21.153,21.143,23.7]
[1680394587884,26.98746365,21.152,21.143,23.7]
[1680394588183,1.73825943,21.151,21.143,23.7]
[1680394588482,10.06833528,21.153,21.143,23.7]
[1680394588683,26.98806358,21.152,21.143,23.7]
[1680394588884,1.73826671,21.151,21.143,23.7]
[1680394589083,10.06833528,21.153,21.143,23.7]
[1680394589287,26.98841594,21.152,21.143,23.7]
[1680394589485,1.73827366,21.151,21.143,23.7]
[1680394589684,10.06833528,21.153,21.143,23.7]
[1680394589887,1.73827638,21.152,21.143,23.7]
[1680394597990,1.73827638,21.151,21.143,23.7]
[1680394598191,0.06833528,21.153,21.143,23.7]
[1680394598392,1.80664142,21.153,21.143,23.7]
[1680394603199,25.50664142,21.153,21.142,23.7]
[1680394603499,1.73830614,21.152,21.142,23.7]
[1680394611107,1.73830614,21.152,21.143,10.0]
[1680394612207,1.73830614,21.152,21.145,23.7]
[1680394612409,0.06833528,21.153,21.145,23.7]
[1680394615405,0.06833528,21.153,21.148,23.7]
[1680394615609,165.5,21.165,21.151,23.7]
[1680394615610,0.067289,21.158,21.151,23.7]
[1680394615907,1.73751352,21.161,21.151,23.7]
[1680394616502,1.73751352,21.161,21.152,44.4572]
[1680394619412,1.73751352,21.161,21.151,23.7]
[1680394619714,23.7,21.157,21.147,0.06460907]
[1680394622921,165.5,21.157,21.147,0.06460907]
[1680394623416,23.7,21.154,21.147,0.06460907]
[1680394624519,1.7381258,21.153,21.147,0.06460907]
[1680394624719,1.7381258,21.153,21.144,10.0]
[1680394626728,1.7381258,21.153,21.143,23.76872349]
[1680394628925,23.7,21.154,21.143,23.76872349]
[1680394629125,1.73816888,21.153,21.143,23.76872349]
[1680394637930,23.7,21.151,21.143,0.06872349]
[1680394644434,165.5,21.151,21.143,0.06872349]
[1680394648336,10.0,21.15,21.143,0.06872349]
[1680394648537,165.5,21.151,21.143,0.06872349]
[1680394649236,10.0,21.15,21.143,0.06872349]
[1680394649437,165.5,21.151,21.143,0.06872349]
[1680394649738,10.0,21.15,21.143,0.06872349]
[1680394649938,165.5,21.151,21.143,0.06872349]
[1680394652336,141.8,21.151,21.143,0.06872349]
[1680394652540,18.94,21.149,21.143,0.06872349]
[1680394652741,18.94,21.149,21.142,18.96]
[1680394654241,18.94,21.146,21.139,19.02701377]
[1680394662145,18.96,21.143,21.139,0.06701377]
[1680394662343,18.96,21.143,21.135,64.3544]
[1680394662538,18.96,21.139,21.135,45.3944]
[1680394667550,23.72,21.141,21.135,45.3944]
[1680394688970,10.0,21.14,21.13,23.78232816]
[1680394689165,23.69,21.139,21.13,0.06232816]
[1680394693270,10.0,21.14,21.13,0.06232816]
[1680394693271,23.49,21.136,21.13,0.06232816]
[1680394693571,23.69,21.134,21.126,0.06958804]
[1680394698368,10.0,21.133,21.126,0.06958804]
[1680394698569,23.69,21.134,21.126,0.06958804]
[1680394706976,23.72,21.132,21.126,0.06958804]
[1680394707177,23.72,21.132,21.123,10.0]
[1680394713984,23.72,21.132,21.122,0.06487081]
[1680394727399,10.0,21.135,21.122,0.06487081]
[1680394727600,18.87,21.13,21.123,18.99]
[1680394747014,18.87,21.128,21.122,0.06487081]
[1680394747215,18.87,21.128,21.121,18.96]
[1680394757022,18.87,21.127,21.119,18.99]
[1680394767229,18.92,21.125,21.118,0.06066091]
[1680394771330,18.92,21.125,21.118,10.06066091]
[1680394775239,18.92,21.125,21.118,0.06066091]
[1680394776942,18.92,21.126,21.118,19.02066091]
[1680394788445,18.92,21.126,21.119,10.0]
[1680394792950,18.92,21.126,21.118,19.02066091]
[1680394795853,18.87,21.128,21.12,18.99]
[1680394803856,18.87,21.125,21.118,19.05066091]
[1680394806956,18.87,21.124,21.118,0.06066091]
[1680394807158,18.87,21.124,21.117,18.99]
[1680394811861,18.87,21.124,21.118,10.0]
[1680394820365,18.87,21.124,21.117,18.99]
[1680394820569,0.08960126,21.117,21.114,0.0650907]
[1680394820867,0.08960126,21.117,21.112,18.99]
[1680394821065,0.08960126,21.117,21.113,10.0]
[1680394825072,0.08960126,21.117,21.112,18.99]
[1680394825571,0.08960126,21.117,21.112,18.90709037]
[1680394826472,0.08960126,21.117,21.113,10.0]
[1680394828669,0.08960126,21.117,21.111,18.99]
[1680394828870,18.87,21.112,21.107,0.0614528]
[1680394829175,18.87,21.112,21.105,10.0]
[1680394829876,18.87,21.112,21.104,28.99]
[1680394830077,0.15098267,21.117,21.102,0.06548321]
[1680394830078,18.87,21.109,21.102,0.06548321]
[1680394830273,18.87,21.109,21.102,10.06548321]
[1680394831277,18.87,21.109,21.102,0.06548321]
[1680394831573,18.87,21.105,21.102,0.06548321]
[1680394831770,18.87,21.105,21.098,10.0]
[1680394832376,23.79,21.107,21.098,10.0]
[1680394836983,23.79,21.104,21.098,10.0]
[1680394839587,23.79,21.108,21.098,10.0]
[1680394847090,47.6869,21.11,21.098,10.0]
[1680394847091,23.55,21.106,21.098,10.0]
[1680394847492,23.55,21.106,21.096,10.06735778]
[1680394852398,23.79,21.103,21.096,0.06735778]
[1680394877119,23.79,21.102,21.096,0.06735778]
[1680394877419,23.79,21.102,21.093,10.0]
[1680394878320,23.79,21.102,21.092,0.06781342]
[1680394883822,23.79,21.102,21.092,10.06781342]
[1680394886820,23.79,21.102,21.092,9.95918052]
[1680394887026,23.79,21.101,21.092,9.95918052]
[1680394897432,19.05,21.099,21.092,29.00918052]
[1680394903037,19.05,21.102,21.095,19.05]
[1680394907035,19.05,21.101,21.094,19.05]
[1680394907833,18.97270134,21.101,21.094,19.05]
[1680394912837,19.05,21.099,21.091,19.05]
[1680394916047,19.05,21.096,21.088,19.05]
[1680394916941,19.05,21.095,21.087,19.05]
[1680394920249,19.05,21.095,21.088,10.0]
[1680394922649,19.05,21.095,21.087,19.05]
[1680394934058,19.05,21.093,21.086,29.05]
[1680394938363,19.05,21.093,21.086,19.05]
[1680394946966,19.05,21.092,21.085,44.8722]
[1680394947169,19.05,21.092,21.085,54.8722]
[1680394949974,19.05,21.092,21.086,10.0]
[1680394956380,19.05,21.092,21.085,54.8722]
[1680394956578,19.05,21.092,21.085,44.8722]
[1680394964686,19.05,21.089,21.085,44.8722]
[1680394970796,19.05,21.086,21.076,19.05]
[1680394970996,19.05,21.084,21.077,10.0]
[1680394971892,19.05,21.084,21.076,19.05]
[1680394972296,19.05,21.084,21.076,18.84042355]
[1680394972496,19.05,21.08,21.074,10.0]
[1680394977101,19.05,21.081,21.074,10.0]
[1680394978405,19.05,21.083,21.076,19.05]
[1680394979502,19.05,21.083,21.077,10.0]
[1680394987011,19.05,21.084,21.077,29.05]
[1680394997022,19.05,21.086,21.078,19.05]
[1680394999926,19.05,21.086,21.079,10.0]
[1680395004422,19.05,21.086,21.078,19.05]
[1680395007131,19.05,21.084,21.077,10.0]
[1680395019944,19.05,21.084,21.076,19.05]
[1680395025351,19.05,21.084,21.077,10.0]
[1680395027049,19.05,21.081,21.077,10.0]
[1680395029151,19.05,21.081,21.074,10.0]
[1680395031853,19.05,21.084,21.077,19.05]
[1680395032152,19.05,21.084,21.078,10.0]
[1680395035958,0.07004933,21.088,21.083,19.05]
[1680395036157,19.05,21.091,21.083,19.05]
[1680395036355,19.05,21.091,21.084,10.0]
[1680395037059,19.11958304,21.093,21.085,19.05]
[1680395040954,19.11958304,21.093,21.086,10.0]
[1680395046962,19.05,21.092,21.086,10.0]
[1680395047363,19.05,21.092,21.084,29.05]
[1680395059978,19.05,21.092,21.084,19.05]
[1680395062483,19.05,21.085,21.077,19.05]
[1680395064281,19.05,21.081,21.074,10.0]
[1680395065379,19.05,21.081,21.073,67.2056]
[1680395066083,19.05,21.087,21.079,19.05]
[1680395067082,0.06679061,21.088,21.081,19.05]
[1680395067586,0.06679061,21.088,21.079,23.69]
[1680395067884,0.06679061,21.088,21.08,10.0]
[1680395070086,0.06679061,21.088,21.083,23.64]
[1680395070287,0.06339644,21.093,21.083,23.64]
[1680395070785,0.06339644,21.093,21.084,10.0]
[1680395071783,0.06339644,21.093,21.083,33.64]